[Event "Titled Tuesday Blitz February 14 Early 2023"]
[White "Tologon tegin, Semetei"]
[Black "Koridze, Lile"]
[WhiteFideId "13800574"]
[BlackFideId "13612514"]
[WhiteElo "2372"]
[BlackElo "2191"]
[Result "0-1"]
[Round "06"]
[TimeControl "180+2"]
[Date "2023.02.15"]
[WhiteClock "0:00:02"]
[BlackClock "0:00:22"]

1. Nf3 {[%clk 0:02:42]}  Nf6 {[%clk 0:02:59]} 2. g3 {[%clk 0:02:41]}  b5 {[%clk 0:02:58]} 3. Bg2 {[%clk 0:02:38]}  Bb7 {[%clk 0:02:58]} 4. Na3 {[%clk 0:02:38]}  a6 {[%clk 0:02:56]} 5. c4 {[%clk 0:02:38]}  b4 {[%clk 0:02:54]} 6. Nc2 {[%clk 0:02:37]}  e6 {[%clk 0:02:54]} 7. d4 {[%clk 0:02:37]}  c5 {[%clk 0:02:50]} 8. O-O {[%clk 0:02:36]}  Be7 {[%clk 0:02:49]} 9. Be3 {[%clk 0:02:30]}  Qc7 {[%clk 0:02:39]} 10. b3 {[%clk 0:02:19]}  O-O {[%clk 0:02:38]} 11. Qd3 {[%clk 0:02:00]}  d6 {[%clk 0:02:30]} 12. Ng5 {[%clk 0:01:43]}  h6 {[%clk 0:02:18]} 13. Ne4 {[%clk 0:01:36]}  Nbd7 {[%clk 0:02:09]} 14. Rad1 {[%clk 0:01:34]}  d5 {[%clk 0:01:57]} 15. cxd5 {[%clk 0:01:32]}  Nxd5 {[%clk 0:01:56]} 16. dxc5 {[%clk 0:01:25]}  Nxc5 {[%clk 0:01:56]} 17. Nxc5 {[%clk 0:01:13]}  Bxc5 {[%clk 0:01:55]} 18. Bxc5 {[%clk 0:00:50]}  Qxc5 {[%clk 0:01:54]} 19. Bxd5 {[%clk 0:00:50]}  Bxd5 {[%clk 0:01:53]} 20. Ne3 {[%clk 0:00:50]}  Bb7 {[%clk 0:01:49]} 21. Rc1 {[%clk 0:00:50]}  Qa5 {[%clk 0:01:46]} 22. Qd2 {[%clk 0:00:42]}  Rfd8 {[%clk 0:01:45]} 23. Qb2 {[%clk 0:00:43]}  Qh5 {[%clk 0:01:42]} 24. Rc7 {[%clk 0:00:41]}  Be4 {[%clk 0:01:39]} 25. f3 {[%clk 0:00:39]}  Qg5 {[%clk 0:01:31]} 26. Qc1 {[%clk 0:00:35]}  Bg6 {[%clk 0:01:23]} 27. Rc5 {[%clk 0:00:34]}  Qe7 {[%clk 0:01:20]} 28. Rc4 {[%clk 0:00:31]}  a5 {[%clk 0:01:19]} 29. Rd1 {[%clk 0:00:30]}  Rxd1+ {[%clk 0:01:16]} 30. Qxd1 {[%clk 0:00:31]}  Rd8 {[%clk 0:01:16]} 31. Qc1 {[%clk 0:00:31]}  Qa7 {[%clk 0:01:14]} 32. Kg2 {[%clk 0:00:27]}  Qd7 {[%clk 0:01:11]} 33. Kf2 {[%clk 0:00:18]}  Qd2 {[%clk 0:01:09]} 34. Qa1 {[%clk 0:00:16]}  Bd3 {[%clk 0:01:07]} 35. Qe1 {[%clk 0:00:07]}  Qxa2 {[%clk 0:01:04]} 36. Rc5 {[%clk 0:00:06]}  Bg6 {[%clk 0:01:00]} 37. Qc1 {[%clk 0:00:05]}  Qxb3 {[%clk 0:00:53]} 38. Rxa5 {[%clk 0:00:05]}  e5 {[%clk 0:00:39]} 39. Ng4 {[%clk 0:00:04]}  e4 {[%clk 0:00:38]} 40. Ne5 {[%clk 0:00:04]}  Bh7 {[%clk 0:00:35]} 41. f4 {[%clk 0:00:03]}  Qe6 {[%clk 0:00:30]} 42. Rb5 {[%clk 0:00:03]}  b3 {[%clk 0:00:28]} 43. Qe3 {[%clk 0:00:03]}  Qh3 {[%clk 0:00:23]} 44. Qxb3 {[%clk 0:00:01]}  Qxh2+ {[%clk 0:00:23]} 45. Ke1 {[%clk 0:00:02]}  Qg1# {[%clk 0:00:22]} 0-1


[Site "https://www.chess.com"]

[Event "Titled Tuesday Blitz February 14 Early 2023"]
[White "Davalos Prieto, Abel Justo"]
[Black "Manelyuk, Daniil"]
[WhiteFideId "5102766"]
[BlackFideId "44173920"]
[WhiteElo "2029"]
[BlackElo "2302"]
[Result "0-1"]
[Round "06"]
[TimeControl "180+2"]
[Date "2023.02.15"]
[WhiteClock "0:00:07"]
[BlackClock "0:00:52"]

1. c4 {[%clk 0:03:00]}  c5 {[%clk 0:02:58]} 2. Nf3 {[%clk 0:02:57]}  Nc6 {[%clk 0:02:57]} 3. d4 {[%clk 0:02:55]}  cxd4 {[%clk 0:02:56]} 4. Nxd4 {[%clk 0:02:55]}  g6 {[%clk 0:02:56]} 5. e4 {[%clk 0:02:52]}  Bg7 {[%clk 0:02:56]} 6. Be3 {[%clk 0:02:52]}  Nf6 {[%clk 0:02:40]} 7. Nc3 {[%clk 0:02:51]}  O-O {[%clk 0:02:40]} 8. Be2 {[%clk 0:02:51]}  d6 {[%clk 0:02:39]} 9. O-O {[%clk 0:02:50]}  Bd7 {[%clk 0:02:38]} 10. Rc1 {[%clk 0:02:48]}  Nxd4 {[%clk 0:02:38]} 11. Bxd4 {[%clk 0:02:46]}  Bc6 {[%clk 0:02:38]} 12. f3 {[%clk 0:02:42]}  Nd7 {[%clk 0:02:38]} 13. Be3 {[%clk 0:02:42]}  a5 {[%clk 0:02:38]} 14. b3 {[%clk 0:02:40]}  Nc5 {[%clk 0:02:36]} 15. Nd5 {[%clk 0:02:33]}  Bxd5 {[%clk 0:02:35]} 16. cxd5 {[%clk 0:02:32]}  b6 {[%clk 0:02:35]} 17. Bb5 {[%clk 0:02:29]}  Qc7 {[%clk 0:02:34]} 18. a3 {[%clk 0:02:25]}  Qd8 {[%clk 0:02:24]} 19. b4 {[%clk 0:02:21]}  axb4 {[%clk 0:02:21]} 20. axb4 {[%clk 0:02:21]}  Nd7 {[%clk 0:02:21]} 21. Rc6 {[%clk 0:02:14]}  Ra3 {[%clk 0:02:18]} 22. Qd2 {[%clk 0:02:10]}  Ne5 {[%clk 0:01:38]} 23. Rxb6 {[%clk 0:01:58]}  Rb3 {[%clk 0:01:37]} 24. Rc1 {[%clk 0:01:51]}  f5 {[%clk 0:01:31]} 25. Rb7 {[%clk 0:01:36]}  fxe4 {[%clk 0:01:24]} 26. fxe4 {[%clk 0:01:34]}  Ng4 {[%clk 0:01:14]} 27. Bd4 {[%clk 0:01:32]}  Bh6 {[%clk 0:01:10]} 28. Qd1 {[%clk 0:01:22]}  e5 {[%clk 0:00:59]} 29. dxe6 {[%clk 0:01:19]}  Qh4 {[%clk 0:00:55]} 30. h3 {[%clk 0:01:08]}  Rxh3 {[%clk 0:00:55]} 31. gxh3 {[%clk 0:00:07]}  Qg3+ {[%clk 0:00:53]} 32. Kh1 {[%clk 0:00:07]}  Qh2# {[%clk 0:00:52]} 0-1


[Site "https://www.chess.com"]

[Event "Titled Tuesday Blitz February 14 Early 2023"]
[White "Piriflillo"]
[Black "Mendonca, Leon Luke"]
[BlackFideId "35028561"]
[WhiteElo "2337"]
[BlackElo "2603"]
[Result "0-1"]
[Round "06"]
[TimeControl "180+2"]
[Date "2023.02.15"]
[WhiteClock "0:00:12"]
[BlackClock "0:00:56"]

1. d4 {[%clk 0:03:00]}  Nf6 {[%clk 0:02:58]} 2. Nf3 {[%clk 0:03:01]}  e6 {[%clk 0:02:58]} 3. e3 {[%clk 0:03:00]}  b6 {[%clk 0:02:59]} 4. Bd3 {[%clk 0:03:01]}  Bb7 {[%clk 0:02:59]} 5. O-O {[%clk 0:03:00]}  Be7 {[%clk 0:03:00]} 6. Nbd2 {[%clk 0:03:00]}  O-O {[%clk 0:03:00]} 7. e4 {[%clk 0:03:00]}  d5 {[%clk 0:02:55]} 8. e5 {[%clk 0:03:00]}  Ne4 {[%clk 0:02:56]} 9. Qe2 {[%clk 0:03:01]}  Nxd2 {[%clk 0:02:46]} 10. Bxd2 {[%clk 0:03:02]}  c5 {[%clk 0:02:45]} 11. c3 {[%clk 0:03:01]}  a5 {[%clk 0:02:45]} 12. a4 {[%clk 0:02:37]}  Ba6 {[%clk 0:02:45]} 13. Bb5 {[%clk 0:02:31]}  Bxb5 {[%clk 0:02:41]} 14. axb5 {[%clk 0:02:32]}  Nd7 {[%clk 0:02:41]} 15. b3 {[%clk 0:02:28]}  Rc8 {[%clk 0:02:39]} 16. c4 {[%clk 0:02:27]}  Re8 {[%clk 0:02:36]} 17. Rfd1 {[%clk 0:02:25]}  Qc7 {[%clk 0:02:28]} 18. cxd5 {[%clk 0:02:14]}  exd5 {[%clk 0:02:27]} 19. Bf4 {[%clk 0:02:13]}  Nf8 {[%clk 0:02:26]} 20. dxc5 {[%clk 0:02:11]}  Qxc5 {[%clk 0:02:24]} 21. Be3 {[%clk 0:02:10]}  Qb4 {[%clk 0:02:16]} 22. Bxb6 {[%clk 0:02:04]}  Ne6 {[%clk 0:02:12]} 23. Bxa5 {[%clk 0:02:03]}  Qxb3 {[%clk 0:02:12]} 24. b6 {[%clk 0:01:49]}  Ra8 {[%clk 0:02:01]} 25. Rdb1 {[%clk 0:01:42]}  Rxa5 {[%clk 0:01:55]} 26. Rxb3 {[%clk 0:01:39]}  Rxa1+ {[%clk 0:01:55]} 27. Ne1 {[%clk 0:01:38]}  Nd4 {[%clk 0:01:56]} 28. Qe3 {[%clk 0:01:17]}  Nc2 {[%clk 0:01:29]} 29. b7 {[%clk 0:00:47]}  Nxe3 {[%clk 0:01:21]} 30. fxe3 {[%clk 0:00:42]}  Rb8 {[%clk 0:01:18]} 31. Kf2 {[%clk 0:00:41]}  Ra7 {[%clk 0:01:18]} 32. Nd3 {[%clk 0:00:40]}  Raxb7 {[%clk 0:01:18]} 33. Rc3 {[%clk 0:00:40]}  Bf8 {[%clk 0:01:12]} 34. Nf4 {[%clk 0:00:40]}  Re7 {[%clk 0:01:11]} 35. Nxd5 {[%clk 0:00:37]}  Rxe5 {[%clk 0:01:11]} 36. Nf4 {[%clk 0:00:31]}  g6 {[%clk 0:01:11]} 37. Nd3 {[%clk 0:00:30]}  Re7 {[%clk 0:01:07]} 38. Nf4 {[%clk 0:00:29]}  Rd8 {[%clk 0:01:03]} 39. Kf3 {[%clk 0:00:20]}  Bh6 {[%clk 0:01:02]} 40. Ne2 {[%clk 0:00:17]}  Rde8 {[%clk 0:01:01]} 41. Nf4 {[%clk 0:00:14]}  Bxf4 {[%clk 0:00:59]} 42. exf4 {[%clk 0:00:14]}  Re1 {[%clk 0:00:57]} 43. Rc7 {[%clk 0:00:13]}  Rf1+ {[%clk 0:00:55]} 44. Kg3 {[%clk 0:00:13]}  Re2 {[%clk 0:00:56]} 45. Rc8+ {[%clk 0:00:12]}  Kg7 {[%clk 0:00:56]} 0-1


[Site "https://www.chess.com"]

[Event "Titled Tuesday Blitz February 14 Early 2023"]
[White "Cherniaiev, Tykhon"]
[Black "Bettalli, Francesco"]
[WhiteFideId "14182360"]
[BlackFideId "2816453"]
[WhiteElo "2330"]
[BlackElo "2252"]
[Result "1-0"]
[Round "06"]
[TimeControl "180+2"]
[Date "2023.02.15"]
[WhiteClock "0:00:03"]
[BlackClock "0:00:39"]

1. Nf3 {[%clk 0:03:00]}  g6 {[%clk 0:02:55]} 2. d4 {[%clk 0:03:01]}  Bg7 {[%clk 0:02:56]} 3. c4 {[%clk 0:03:01]}  c5 {[%clk 0:02:57]} 4. g3 {[%clk 0:03:00]}  cxd4 {[%clk 0:02:57]} 5. Nxd4 {[%clk 0:03:01]}  Nc6 {[%clk 0:02:58]} 6. Nxc6 {[%clk 0:03:00]}  dxc6 {[%clk 0:02:57]} 7. Qxd8+ {[%clk 0:02:58]}  Kxd8 {[%clk 0:02:58]} 8. Bg2 {[%clk 0:02:57]}  Nf6 {[%clk 0:02:58]} 9. O-O {[%clk 0:02:57]}  e5 {[%clk 0:02:58]} 10. Nc3 {[%clk 0:02:57]}  Kc7 {[%clk 0:02:59]} 11. Rd1 {[%clk 0:02:57]}  Be6 {[%clk 0:02:59]} 12. b3 {[%clk 0:02:57]}  Rhd8 {[%clk 0:02:59]} 13. Bb2 {[%clk 0:02:58]}  Rd7 {[%clk 0:02:58]} 14. Na4 {[%clk 0:02:56]}  Ne8 {[%clk 0:02:53]} 15. Nc5 {[%clk 0:02:52]}  Rxd1+ {[%clk 0:02:54]} 16. Rxd1 {[%clk 0:02:53]}  Bc8 {[%clk 0:02:54]} 17. h3 {[%clk 0:02:24]}  b6 {[%clk 0:02:50]} 18. Nd3 {[%clk 0:02:00]}  f6 {[%clk 0:02:49]} 19. f4 {[%clk 0:02:00]}  exf4 {[%clk 0:02:36]} 20. Nxf4 {[%clk 0:02:01]}  Nd6 {[%clk 0:02:31]} 21. g4 {[%clk 0:01:51]}  Bd7 {[%clk 0:02:29]} 22. g5 {[%clk 0:01:40]}  Rf8 {[%clk 0:02:25]} 23. Ba3 {[%clk 0:01:40]}  c5 {[%clk 0:02:18]} 24. Nd5+ {[%clk 0:01:27]}  Kc8 {[%clk 0:02:18]} 25. Bb2 {[%clk 0:00:53]}  Ne8 {[%clk 0:02:16]} 26. gxf6 {[%clk 0:00:36]}  Nxf6 {[%clk 0:02:10]} 27. Ne7+ {[%clk 0:00:36]}  Kd8 {[%clk 0:02:04]} 28. Nc6+ {[%clk 0:00:34]}  Kc7 {[%clk 0:02:05]} 29. Nxa7 {[%clk 0:00:33]}  Nh5 {[%clk 0:02:02]} 30. Bxg7 {[%clk 0:00:31]}  Nxg7 {[%clk 0:02:03]} 31. a4 {[%clk 0:00:26]}  Nf5 {[%clk 0:01:59]} 32. Nb5+ {[%clk 0:00:24]}  Bxb5 {[%clk 0:01:57]} 33. axb5 {[%clk 0:00:24]}  Nd4 {[%clk 0:01:57]} 34. Ra1 {[%clk 0:00:21]}  Nxe2+ {[%clk 0:01:56]} 35. Kh2 {[%clk 0:00:21]}  Nd4 {[%clk 0:01:50]} 36. Ra7+ {[%clk 0:00:20]}  Kd6 {[%clk 0:01:50]} 37. Rxh7 {[%clk 0:00:19]}  Nxb3 {[%clk 0:01:48]} 38. Rb7 {[%clk 0:00:19]}  Nd2 {[%clk 0:01:46]} 39. Rxb6+ {[%clk 0:00:19]}  Ke5 {[%clk 0:01:41]} 40. Rxg6 {[%clk 0:00:19]}  Nxc4 {[%clk 0:01:42]} 41. b6 {[%clk 0:00:19]}  Rb8 {[%clk 0:01:39]} 42. b7 {[%clk 0:00:19]}  Nd6 {[%clk 0:01:39]} 43. Rg5+ {[%clk 0:00:17]}  Kf6 {[%clk 0:01:04]} 44. Rxc5 {[%clk 0:00:16]}  Nxb7 {[%clk 0:01:03]} 45. Rb5 {[%clk 0:00:16]}  Rd8 {[%clk 0:01:00]} 46. Rxb7 {[%clk 0:00:16]}  Kg5 {[%clk 0:01:00]} 47. Rb5+ {[%clk 0:00:15]}  Kh4 {[%clk 0:00:59]} 48. Rb4+ {[%clk 0:00:15]}  Kh5 {[%clk 0:00:59]} 49. Bf3+ {[%clk 0:00:15]}  Kg5 {[%clk 0:00:59]} 50. Kg3 {[%clk 0:00:15]}  Rd3 {[%clk 0:00:57]} 51. h4+ {[%clk 0:00:15]}  Kh6 {[%clk 0:00:57]} 52. Rb6+ {[%clk 0:00:14]}  Kg7 {[%clk 0:00:57]} 53. Kf4 {[%clk 0:00:13]}  Ra3 {[%clk 0:00:54]} 54. h5 {[%clk 0:00:10]}  Ra4+ {[%clk 0:00:53]} 55. Be4 {[%clk 0:00:10]}  Ra5 {[%clk 0:00:52]} 56. h6+ {[%clk 0:00:10]}  Kf7 {[%clk 0:00:51]} 57. Rb7+ {[%clk 0:00:08]}  Kf6 {[%clk 0:00:47]} 58. h7 {[%clk 0:00:04]}  Rh5 {[%clk 0:00:48]} 59. Rb8 {[%clk 0:00:04]}  Kg7 {[%clk 0:00:47]} 60. Rg8+ {[%clk 0:00:03]}  Kf7 {[%clk 0:00:43]} 61. Bg6+ {[%clk 0:00:03]}  Ke7 {[%clk 0:00:39]} 62. Bxh5 {[%clk 0:00:03]} 1-0


[Site "https://www.chess.com"]

[Event "Titled Tuesday Blitz February 14 Early 2023"]
[White "Skvortsov, Andrei"]
[Black "Fiorito, Francisco"]
[WhiteFideId "24108600"]
[BlackFideId "180165"]
[WhiteElo "2313"]
[BlackElo "2305"]
[Result "1-0"]
[Round "06"]
[TimeControl "180+2"]
[Date "2023.02.15"]
[WhiteClock "0:01:28"]
[BlackClock "0:00:06"]

1. e4 {[%clk 0:02:59]}  c5 {[%clk 0:03:00]} 2. g3 {[%clk 0:02:56]}  Nc6 {[%clk 0:02:59]} 3. Bg2 {[%clk 0:02:56]}  g6 {[%clk 0:03:00]} 4. Nf3 {[%clk 0:02:55]}  Bg7 {[%clk 0:03:01]} 5. O-O {[%clk 0:02:56]}  d6 {[%clk 0:03:02]} 6. Re1 {[%clk 0:02:56]}  e6 {[%clk 0:03:02]} 7. c3 {[%clk 0:02:56]}  Nge7 {[%clk 0:03:00]} 8. d4 {[%clk 0:02:56]}  cxd4 {[%clk 0:02:57]} 9. cxd4 {[%clk 0:02:57]}  O-O {[%clk 0:02:58]} 10. Nc3 {[%clk 0:02:57]}  d5 {[%clk 0:02:42]} 11. e5 {[%clk 0:02:55]}  h6 {[%clk 0:02:39]} 12. g4 {[%clk 0:02:52]}  g5 {[%clk 0:01:52]} 13. Be3 {[%clk 0:02:47]}  Ng6 {[%clk 0:01:52]} 14. Qd2 {[%clk 0:02:45]}  f6 {[%clk 0:01:39]} 15. exf6 {[%clk 0:02:45]}  Qxf6 {[%clk 0:01:38]} 16. h3 {[%clk 0:02:38]}  Bd7 {[%clk 0:01:38]} 17. Nh2 {[%clk 0:02:38]}  Nh4 {[%clk 0:01:34]} 18. Bh1 {[%clk 0:02:33]}  Kh8 {[%clk 0:01:25]} 19. Ne2 {[%clk 0:02:33]}  Rae8 {[%clk 0:01:23]} 20. Rad1 {[%clk 0:02:33]}  Ne7 {[%clk 0:01:10]} 21. Ng3 {[%clk 0:02:33]}  Neg6 {[%clk 0:00:46]} 22. Nh5 {[%clk 0:02:32]}  Qf7 {[%clk 0:00:46]} 23. f3 {[%clk 0:02:28]}  Kh7 {[%clk 0:00:41]} 24. Bf2 {[%clk 0:02:28]}  Bh8 {[%clk 0:00:40]} 25. Bg2 {[%clk 0:02:19]}  Kg8 {[%clk 0:00:38]} 26. Qd3 {[%clk 0:02:15]}  Nxg2 {[%clk 0:00:20]} 27. Kxg2 {[%clk 0:02:14]}  Nf4+ {[%clk 0:00:20]} 28. Nxf4 {[%clk 0:02:14]}  Qxf4 {[%clk 0:00:19]} 29. Qg6+ {[%clk 0:02:06]}  Bg7 {[%clk 0:00:20]} 30. Bg3 {[%clk 0:02:06]}  Qf6 {[%clk 0:00:17]} 31. Qxf6 {[%clk 0:02:07]}  Rxf6 {[%clk 0:00:18]} 32. Be5 {[%clk 0:02:02]}  Rf7 {[%clk 0:00:18]} 33. Nf1 {[%clk 0:02:01]}  Ref8 {[%clk 0:00:18]} 34. Bxg7 {[%clk 0:02:00]}  Kxg7 {[%clk 0:00:18]} 35. Re3 {[%clk 0:01:48]}  Rf6 {[%clk 0:00:17]} 36. Ng3 {[%clk 0:01:48]}  R6f7 {[%clk 0:00:09]} 37. Rc1 {[%clk 0:01:46]}  Rc8 {[%clk 0:00:09]} 38. Rec3 {[%clk 0:01:45]}  Rc6 {[%clk 0:00:09]} 39. b4 {[%clk 0:01:44]}  a6 {[%clk 0:00:09]} 40. a3 {[%clk 0:01:38]}  Kg8 {[%clk 0:00:09]} 41. Rc5 {[%clk 0:01:37]}  Rf4 {[%clk 0:00:09]} 42. Ne2 {[%clk 0:01:36]}  Rf8 {[%clk 0:00:07]} 43. Kf2 {[%clk 0:01:36]}  Rfc8 {[%clk 0:00:07]} 44. f4 {[%clk 0:01:33]}  Rf8 {[%clk 0:00:05]} 45. Ke3 {[%clk 0:01:33]}  Kf7 {[%clk 0:00:05]} 46. fxg5 {[%clk 0:01:33]}  hxg5 {[%clk 0:00:06]} 47. Rf1+ {[%clk 0:01:32]}  Ke7 {[%clk 0:00:07]} 48. Rxf8 {[%clk 0:01:33]}  Kxf8 {[%clk 0:00:07]} 49. Ng1 {[%clk 0:01:33]}  Ke7 {[%clk 0:00:07]} 50. Nf3 {[%clk 0:01:32]}  Kf6 {[%clk 0:00:08]} 51. Ne5 {[%clk 0:01:29]}  Rd6 {[%clk 0:00:05]} 52. Rc7 {[%clk 0:01:29]}  Bc6 {[%clk 0:00:06]} 53. Rf7# {[%clk 0:01:28]} 1-0


[Site "https://www.chess.com"]

[Event "Titled Tuesday Blitz February 14 Early 2023"]
[White "Martic, Ivan"]
[Black "Souleidis, Georgios"]
[WhiteFideId "929301"]
[BlackFideId "4206827"]
[WhiteElo "2301"]
[BlackElo "2419"]
[Result "1-0"]
[Round "06"]
[TimeControl "180+2"]
[Date "2023.02.15"]
[WhiteClock "0:00:21"]
[BlackClock "0:00:05"]

1. e4 {[%clk 0:02:52]}  c5 {[%clk 0:02:59]} 2. Nf3 {[%clk 0:02:52]}  e6 {[%clk 0:02:59]} 3. d4 {[%clk 0:02:52]}  cxd4 {[%clk 0:03:00]} 4. Nxd4 {[%clk 0:02:52]}  Nf6 {[%clk 0:03:01]} 5. Nc3 {[%clk 0:02:51]}  Nc6 {[%clk 0:02:57]} 6. Ndb5 {[%clk 0:02:50]}  Bc5 {[%clk 0:02:56]} 7. Bf4 {[%clk 0:02:44]}  O-O {[%clk 0:02:56]} 8. Bc7 {[%clk 0:02:44]}  Qe7 {[%clk 0:02:55]} 9. Bd6 {[%clk 0:02:44]}  Bxd6 {[%clk 0:02:55]} 10. Qxd6 {[%clk 0:02:45]}  Qd8 {[%clk 0:02:55]} 11. O-O-O {[%clk 0:02:44]}  a6 {[%clk 0:02:56]} 12. Nd4 {[%clk 0:02:45]}  Ne7 {[%clk 0:02:55]} 13. f4 {[%clk 0:02:32]}  Ne8 {[%clk 0:02:47]} 14. Qa3 {[%clk 0:02:27]}  Rb8 {[%clk 0:02:43]} 15. Nb3 {[%clk 0:02:08]}  b5 {[%clk 0:02:29]} 16. Qa5 {[%clk 0:02:02]}  Qxa5 {[%clk 0:01:54]} 17. Nxa5 {[%clk 0:02:03]}  d6 {[%clk 0:01:53]} 18. b4 {[%clk 0:01:58]}  Bd7 {[%clk 0:01:49]} 19. Be2 {[%clk 0:01:46]}  Nc6 {[%clk 0:01:47]} 20. Nxc6 {[%clk 0:01:44]}  Bxc6 {[%clk 0:01:48]} 21. a3 {[%clk 0:01:41]}  Rc8 {[%clk 0:01:32]} 22. Kb2 {[%clk 0:01:41]}  g6 {[%clk 0:01:11]} 23. Rhe1 {[%clk 0:01:38]}  f6 {[%clk 0:00:55]} 24. g3 {[%clk 0:01:35]}  Rf7 {[%clk 0:00:55]} 25. h4 {[%clk 0:01:35]}  Rfc7 {[%clk 0:00:55]} 26. Bd3 {[%clk 0:01:33]}  Kf7 {[%clk 0:00:44]} 27. Rd2 {[%clk 0:01:33]}  Ke7 {[%clk 0:00:43]} 28. e5 {[%clk 0:01:33]}  dxe5 {[%clk 0:00:35]} 29. fxe5 {[%clk 0:01:34]}  f5 {[%clk 0:00:36]} 30. Ne2 {[%clk 0:01:33]}  Rd7 {[%clk 0:00:30]} 31. Red1 {[%clk 0:01:27]}  Rcd8 {[%clk 0:00:30]} 32. Nf4 {[%clk 0:01:22]}  Bf3 {[%clk 0:00:28]} 33. Rf1 {[%clk 0:01:21]}  Bg4 {[%clk 0:00:26]} 34. Rh2 {[%clk 0:01:17]}  Nc7 {[%clk 0:00:25]} 35. Ra1 {[%clk 0:01:14]}  Nd5 {[%clk 0:00:24]} 36. Re1 {[%clk 0:01:10]}  Kf7 {[%clk 0:00:22]} 37. Rf2 {[%clk 0:00:59]}  Ke7 {[%clk 0:00:20]} 38. Rff1 {[%clk 0:00:55]}  Rc7 {[%clk 0:00:20]} 39. Rf2 {[%clk 0:00:54]}  Rcd7 {[%clk 0:00:20]} 40. Rd2 {[%clk 0:00:52]}  Nxf4 {[%clk 0:00:19]} 41. gxf4 {[%clk 0:00:52]}  Rd4 {[%clk 0:00:20]} 42. Rf2 {[%clk 0:00:52]}  h6 {[%clk 0:00:18]} 43. Ra1 {[%clk 0:00:51]}  Rb8 {[%clk 0:00:11]} 44. Kc3 {[%clk 0:00:47]}  Rd7 {[%clk 0:00:12]} 45. a4 {[%clk 0:00:44]}  Rc7+ {[%clk 0:00:12]} 46. Kb3 {[%clk 0:00:44]}  bxa4+ {[%clk 0:00:12]} 47. Rxa4 {[%clk 0:00:45]}  Rcb7 {[%clk 0:00:07]} 48. c3 {[%clk 0:00:44]}  Rd7 {[%clk 0:00:05]} 49. Bc2 {[%clk 0:00:39]}  Rb6 {[%clk 0:00:03]} 50. Ra5 {[%clk 0:00:33]}  Rc7 {[%clk 0:00:02]} 51. Rf1 {[%clk 0:00:32]}  Bh3 {[%clk 0:00:02]} 52. Rfa1 {[%clk 0:00:31]}  Rcc6 {[%clk 0:00:02]} 53. Bd3 {[%clk 0:00:31]}  Bg2 {[%clk 0:00:01]} 54. Rxa6 {[%clk 0:00:30]}  Rxa6 {[%clk 0:00:01]} 55. Rxa6 {[%clk 0:00:31]}  Rc7 {[%clk 0:00:02]} 56. Ra2 {[%clk 0:00:29]}  Bd5+ {[%clk 0:00:01]} 57. c4 {[%clk 0:00:29]}  Bf3 {[%clk 0:00:01]} 58. b5 {[%clk 0:00:29]}  g5 {[%clk 0:00:02]} 59. hxg5 {[%clk 0:00:29]}  hxg5 {[%clk 0:00:03]} 60. fxg5 {[%clk 0:00:30]}  Bb7 {[%clk 0:00:02]} 61. Kb4 {[%clk 0:00:29]}  f4 {[%clk 0:00:03]} 62. c5 {[%clk 0:00:29]}  Bd5 {[%clk 0:00:03]} 63. b6 {[%clk 0:00:28]}  Rb7 {[%clk 0:00:03]} 64. Ra7 {[%clk 0:00:28]}  Kf7 {[%clk 0:00:02]} 65. Rxb7+ {[%clk 0:00:19]}  Bxb7 {[%clk 0:00:03]} 66. Kb5 {[%clk 0:00:19]}  f3 {[%clk 0:00:04]} 67. c6 {[%clk 0:00:19]}  Bc8 {[%clk 0:00:04]} 68. b7 {[%clk 0:00:20]}  Bxb7 {[%clk 0:00:05]} 69. cxb7 {[%clk 0:00:21]} 1-0


[Site "https://www.chess.com"]

[Event "Titled Tuesday Blitz February 14 Early 2023"]
[White "Sanchez, Robert"]
[Black "Vlassov, Nikolai"]
[WhiteFideId "2034360"]
[BlackFideId "4103360"]
[WhiteElo "1966"]
[BlackElo "2283"]
[Result "1-0"]
[Round "06"]
[TimeControl "180+2"]
[Date "2023.02.15"]
[WhiteClock "0:00:04"]
[BlackClock "0:00:04"]

1. Nf3 {[%clk 0:02:11]}  c5 {[%clk 0:02:58]} 2. e3 {[%clk 0:02:12]}  b6 {[%clk 0:02:58]} 3. Bc4 {[%clk 0:02:11]}  Bb7 {[%clk 0:02:56]} 4. d4 {[%clk 0:02:10]}  e6 {[%clk 0:02:54]} 5. O-O {[%clk 0:02:04]}  Nf6 {[%clk 0:02:53]} 6. Nc3 {[%clk 0:02:03]}  a6 {[%clk 0:02:44]} 7. a4 {[%clk 0:02:03]}  Nc6 {[%clk 0:02:36]} 8. dxc5 {[%clk 0:02:02]}  Bxc5 {[%clk 0:02:34]} 9. e4 {[%clk 0:01:59]}  Qc7 {[%clk 0:02:26]} 10. Bg5 {[%clk 0:01:53]}  Ng4 {[%clk 0:02:22]} 11. Bh4 {[%clk 0:01:42]}  h5 {[%clk 0:02:04]} 12. Bg3 {[%clk 0:01:38]}  d6 {[%clk 0:01:53]} 13. h3 {[%clk 0:01:28]}  Nge5 {[%clk 0:01:48]} 14. Be2 {[%clk 0:01:28]}  Nxf3+ {[%clk 0:01:38]} 15. Bxf3 {[%clk 0:01:28]}  h4 {[%clk 0:01:38]} 16. Bh2 {[%clk 0:01:28]}  Nd4 {[%clk 0:01:20]} 17. Kh1 {[%clk 0:01:22]}  Rd8 {[%clk 0:01:11]} 18. Qd3 {[%clk 0:01:19]}  Nxf3 {[%clk 0:01:10]} 19. Qxf3 {[%clk 0:01:19]}  Bd4 {[%clk 0:01:10]} 20. Rad1 {[%clk 0:01:05]}  Bxc3 {[%clk 0:01:09]} 21. bxc3 {[%clk 0:01:05]}  O-O {[%clk 0:00:57]} 22. Qg4 {[%clk 0:00:59]}  Qxc3 {[%clk 0:00:53]} 23. Bxd6 {[%clk 0:00:47]}  Rfe8 {[%clk 0:00:38]} 24. f4 {[%clk 0:00:33]}  f6 {[%clk 0:00:32]} 25. e5 {[%clk 0:00:24]}  f5 {[%clk 0:00:25]} 26. Qxh4 {[%clk 0:00:24]}  Qxc2 {[%clk 0:00:24]} 27. Qg3 {[%clk 0:00:22]}  Qxa4 {[%clk 0:00:19]} 28. Rc1 {[%clk 0:00:16]}  Rd7 {[%clk 0:00:18]} 29. Rc3 {[%clk 0:00:12]}  Qe4 {[%clk 0:00:15]} 30. Rfc1 {[%clk 0:00:11]}  Red8 {[%clk 0:00:11]} 31. Rc7 {[%clk 0:00:08]}  a5 {[%clk 0:00:11]} 32. Rxd7 {[%clk 0:00:08]}  Rxd7 {[%clk 0:00:10]} 33. Qg6 {[%clk 0:00:07]}  Rxd6 {[%clk 0:00:03]} 34. exd6 {[%clk 0:00:06]}  Qxf4 {[%clk 0:00:04]} 35. Rd1 {[%clk 0:00:04]} 1-0


[Site "https://www.chess.com"]